bitfinex/quotes_ETHUSD_20250222
["timestamp","ask_amount","ask_price","bid_price","bid_amount"]
[1740257938622,3.60193,2776.3,2775.8,0.92344042]
[1740257939868,3.60193,2776.3,2775.9,0.11274042]
[1740257940234,4.39989,2776.5,2775.9,0.11274042]
[1740257940430,3.60169,2776.5,2776.0,0.8107]
[1740257940634,3.60182,2776.4,2776.0,0.8107]
[1740257941273,3.60169,2776.5,2776.0,0.8107]
[1740257941437,4.40014,2776.3,2775.9,0.11274042]
[1740257941637,4.40014,2776.3,2775.8,0.8107]
[1740257942446,4.40014,2776.3,2775.9,0.257]
[1740257943035,8.00215,2776.3,2775.9,0.257]
[1740257943575,3.60204,2776.2,2775.9,0.257]
[1740257944386,3.60243,2775.9,2775.8,5.39]
[1740257944554,3.60243,2775.9,2775.6,0.8107]
[1740257947408,3.60243,2775.9,2775.7,0.11275174]
[1740257948712,3.60243,2775.9,2775.6,0.8107]
[1740257949293,0.7982,2776.0,2775.6,0.8107]
[1740257949607,4.40051,2776.0,2775.6,0.8107]
[1740257949808,3.60231,2776.0,2775.6,0.8107]
[1740257950365,0.7804,2775.9,2775.4,5.91320365]
[1740257950575,4.38291,2775.9,2775.4,6.60537377]
[1740257951313,4.38291,2775.9,2775.4,6.34837377]
[1740257951513,4.38291,2775.9,2775.4,6.60537377]
[1740257951973,4.38291,2775.9,2775.5,0.112755]
[1740257953367,4.38291,2775.9,2775.6,0.112755]
[1740257955012,4.38291,2775.9,2775.4,6.60537377]
[1740257956312,4.38291,2775.9,2775.5,0.11275329]
[1740257957514,3.60256,2775.8,2775.6,0.11275329]
[1740257958624,3.60279,2775.7,2775.6,0.11275329]
[1740257959205,3.60287,2775.6,2775.3,0.11275329]
[1740257959408,4.35772,2775.5,2775.3,0.11275329]
[1740257960788,4.35772,2775.5,2775.1,6.3509687]
[1740257961122,4.35772,2775.5,2775.1,0.9609687]
[1740257961903,7.96077,2775.5,2775.1,0.9609687]
[1740257962329,7.96077,2775.5,2775.2,0.11276789]
[1740257962921,3.60308,2775.4,2775.2,0.11276789]
[1740257963790,3.60308,2775.4,2775.1,0.9609687]
[1740257964290,4.35772,2775.5,2775.1,0.9609687]
[1740257966334,7.96076,2775.5,2775.1,0.9609687]
[1740257966539,4.35772,2775.5,2775.1,0.9609687]
[1740257967639,7.96075,2775.5,2775.1,0.9609687]
[1740257968132,3.60309,2775.4,2775.1,0.9609687]
[1740257971809,3.60334,2775.2,2775.1,0.7039687]
[1740257972265,3.60347,2775.1,2774.9,5.39]
[1740257972545,3.60347,2775.1,2775.0,0.11277242]
[1740257973752,3.60347,2775.1,2774.7,5.74288622]
[1740257974049,3.60369,2775.0,2774.7,5.74288622]
[1740257974351,3.60369,2775.0,2774.9,0.71876037]
[1740257980351,3.60369,2775.0,2774.7,5.74288622]
[1740257982762,3.60369,2775.0,2774.8,0.71359482]
[1740257986480,3.60373,2774.9,2774.8,0.71359482]
[1740257986683,3.60373,2774.9,2774.7,5.74288622]
[1740257986684,3.60386,2774.8,2774.7,4.91268622]
[1740257995493,4.43413,2774.9,2774.5,0.257]
[1740257995494,8.03795,2774.9,2774.5,0.257]
[1740257995705,4.43413,2774.9,2774.5,0.257]
[1740257996297,3.60387,2774.8,2774.5,0.257]
[1740257996501,4.43413,2774.9,2774.5,0.257]
[1740257996695,8.03796,2774.9,2774.5,0.257]
[1740257997002,3.60386,2774.8,2774.5,0.257]
[1740258000407,0.8304,2774.9,2774.5,0.257]
[1740258000562,4.43415,2774.9,2774.5,0.257]
[1740258000763,4.4335,2775.4,2774.9,0.7546]
[1740258001192,3.60282,2775.6,2774.9,0.7546]
[1740258001381,3.60299,2775.5,2774.9,0.7546]
[1740258001682,0.8304,2775.6,2774.9,0.7546]
[1740258001875,0.8304,2775.6,2775.0,0.11277338]
[1740258002081,3.60311,2775.4,2775.0,0.11277338]
[1740258002893,3.60337,2775.2,2775.0,0.11277338]
[1740258003390,3.60311,2775.4,2774.9,0.7546]
[1740258003605,3.60324,2775.3,2774.9,0.7546]
[1740258004320,3.6036,2775.0,2774.6,0.7546]
[1740258004519,3.60385,2774.9,2774.6,0.7546]
[1740258004680,2.45219726,2775.2,2774.6,0.7546]
[1740258004881,3.60374,2774.9,2774.6,0.7546]
[1740258005379,3.60347,2775.1,2774.6,0.7546]
[1740258005612,3.60347,2775.1,2774.6,1.755197]
[1740258005802,3.60347,2775.1,2774.7,0.11278524]
[1740258006386,0.8304,2775.4,2774.8,0.7546]
[1740258006592,3.60324,2775.3,2774.8,0.7546]
[1740258007118,3.60324,2775.3,2774.9,0.11278524]
[1740258008119,3.60324,2775.3,2774.8,0.7546]
[1740258008415,3.60324,2775.3,2774.8,1.2905307]
[1740258009031,0.8304,2775.4,2774.8,1.2905307]
[1740258009703,5.22476726,2775.5,2774.8,1.2905307]
[1740258009904,5.22476726,2775.5,2774.8,4.8943807]
[1740258010134,5.22476726,2775.5,2774.8,1.2905307]
[1740258010505,3.60318,2775.4,2774.8,0.7546]
[1740258010833,5.22476726,2775.5,2774.8,0.7546]
[1740258011030,3.60321,2775.3,2774.8,0.7546]
[1740258011246,3.60321,2775.3,2774.9,0.11277582]
[1740258012235,3.60321,2775.3,2774.8,0.7546]
[1740258012535,3.60321,2775.3,2775.1,0.70967903]
[1740258012699,3.60321,2775.3,2774.8,0.7546]
[1740258012893,3.60355,2775.1,2774.8,0.7546]
[1740258013146,5.58570226,2775.1,2774.5,5.647]
[1740258013314,5.22534726,2775.1,2774.5,5.647]
[1740258013513,3.60355,2775.1,2774.5,5.647]
[1740258013845,3.60355,2775.1,2774.6,0.11278669]
[1740258014006,3.60375,2774.9,2774.6,0.11278669]
[1740258014335,3.60399,2774.7,2774.6,0.11278669]
[1740258015737,0.7635,2774.8,2774.6,0.11278669]
[1740258016236,2.38529726,2775.1,2774.6,0.11278669]
[1740258016410,3.0,2775.7,2774.7,4.40248]
[1740258016411,0.7635,2775.4,2774.7,4.40248]
[1740258016596,0.7635,2775.4,2774.7,0.7986]
[1740258016597,3.60315,2775.4,2774.7,0.7986]
[1740258016796,7.20635,2775.4,2774.7,1.77273939]
[1740258017039,3.60315,2775.4,2774.7,1.88552608]
[1740258017239,3.60315,2775.4,2774.7,5.48944608]
[1740258017422,3.60296,2775.5,2774.8,3.60385]
[1740258017776,3.60312,2775.4,2774.9,0.7986]
[1740258018243,5.22478726,2775.5,2774.9,0.7986]
[1740258018437,0.7635,2775.6,2775.0,3.60359]
[1740258018637,2.39759726,2775.9,2775.1,1.0723]
[1740258019199,3.60284,2775.6,2775.1,1.0723]
[1740258019542,3.60284,2775.6,2775.2,0.11276644]
[1740258021111,3.60284,2775.6,2775.1,1.0723]
[1740258023169,1.62179726,2775.7,2775.1,1.0723]
[1740258023334,3.6026,2775.8,2775.2,0.8153]
[1740258024175,7.20526,2775.8,2775.2,0.8153]
[1740258024470,7.20528,2775.8,2775.2,0.8153]
[1740258024769,3.6026,2775.8,2775.2,0.8153]
[1740258024971,7.20528,2775.8,2775.2,0.8153]
[1740258025477,3.6027,2775.7,2775.2,0.8153]
[1740258025774,7.20527,2775.8,2775.2,0.8153]
[1740258025971,3.60272,2775.7,2775.2,0.8153]
[1740258026270,7.20526,2775.8,2775.2,0.8153]
[1740258026473,3.6026,2775.8,2775.2,0.8153]
[1740258026971,7.20524,2775.8,2775.2,0.8153]
[1740258027671,7.20525,2775.8,2775.2,0.8153]
[1740258027976,3.6026,2775.8,2775.2,0.8153]
[1740258028178,7.20527,2775.8,2775.2,1.41584176]
[1740258029271,3.60272,2775.7,2775.2,1.41584176]
[1740258029777,3.60272,2775.7,2775.2,0.8153]
[1740258029975,3.6026,2775.8,2775.2,0.8153]
[1740258030336,7.20526,2775.8,2775.2,0.8153]
[1740258030772,3.60269,2775.7,2775.2,0.8153]
[1740258032579,3.60284,2775.6,2775.2,0.8153]
[1740258038001,4.48556773,2775.6,2775.2,0.8153]
[1740258038295,5.22500726,2775.3,2775.1,0.257]
[1740258038588,0.7927,2775.2,2774.9,5.39]
[1740258038790,5.22534726,2775.1,2774.9,5.39]
[1740258039093,5.22534726,2775.1,2774.7,0.257]
[1740258039467,8.82890726,2775.1,2774.7,0.257]
[1740258039667,5.22534726,2775.1,2774.6,0.8184]
[1740258040191,5.22534726,2775.1,2774.7,0.11278459]
[1740258041294,8.82893726,2775.1,2774.7,0.11278459]
[1740258041467,5.22534726,2775.1,2774.7,0.11278459]
[1740258041997,3.60368,2775.0,2774.7,0.11278459]
[1740258042208,3.60368,2775.0,2774.8,0.11278459]
[1740258043496,3.60368,2775.0,2774.6,0.8184]
[1740258046063,3.60443,2774.4,2773.8,0.257]
[1740258046687,0.7927,2774.6,2773.9,0.8184]
[1740258047007,0.7927,2774.6,2774.0,3.60482]
[1740258047915,0.7927,2774.6,2773.9,0.8184]
[1740258048494,0.7927,2774.6,2773.9,4.4233]
[1740258048702,4.39683,2774.6,2773.9,4.4233]
[1740258049416,0.7927,2774.6,2773.9,0.8184]
[1740258049711,3.60458,2774.3,2773.9,0.8184]
[1740258050098,7.20918,2774.3,2773.9,0.8184]
[1740258050411,3.60478,2774.1,2773.7,6.2228]
[1740258051700,0.7892,2774.2,2773.7,6.2228]
[1740258051906,4.39385,2774.2,2773.7,6.2228]
[1740258052228,0.7892,2774.2,2773.7,6.2228]
[1740258052383,3.60477,2774.1,2773.9,0.70916147]
[1740258053593,4.404625,2774.1,2773.9,0.70916147]
[1740258053781,3.6049,2774.0,2773.9,0.70916147]
[1740258057320,3.60505,2773.9,2773.4,1.058]
[1740258057623,3.60493,2774.0,2773.4,1.058]
[1740258058522,4.404625,2774.1,2773.4,4.66358]
[1740258058677,3.60477,2774.1,2773.4,5.51752456]
[1740258058877,4.39389,2774.2,2773.5,3.60554]
[1740258059093,3.60454,2774.3,2773.6,0.801]
[1740258059291,7.20915,2774.3,2773.6,0.801]
[1740258059540,4.3779,2774.5,2773.7,3.60518]
[1740258059694,5.755092,2774.5,2773.8,0.801]
[1740258059889,9.359442,2774.5,2773.8,0.801]
[1740258060095,5.755092,2774.5,2773.8,0.801]
[1740258060435,5.755092,2774.5,2773.8,4.40615]
[1740258060621,3.60453,2774.3,2773.8,2.33630527]
[1740258060833,3.60453,2774.3,2773.8,1.53515627]
[1740258061293,3.60467,2774.2,2773.8,1.53515627]
[1740258062441,4.37792,2774.5,2773.8,1.53515627]
[1740258062602,3.60432,2774.5,2773.9,3.60502]
[1740258062937,3.60432,2774.5,2774.0,0.801]
[1740258063139,4.926517,2774.5,2774.0,0.801]
[1740258063635,1.322197,2774.5,2774.0,0.801]
[1740258064238,3.60415,2774.6,2774.0,0.801]
[1740258066430,3.60415,2774.6,2773.9,3.60499]
[1740258066431,3.0,2774.8,2774.2,3.60454]
[1740258066796,3.0,2774.8,2774.2,0.801]
[1740258067340,8.84362,2775.0,2774.3,4.40551]
[1740258067535,3.60362,2775.0,2774.3,4.40551]
[1740258067738,3.60373,2774.9,2774.3,0.801]
[1740258068936,3.60395,2774.8,2774.3,0.801]
[1740258069736,3.60373,2774.9,2774.3,0.801]
[1740258070705,3.60373,2774.9,2774.3,0.91379751]
[1740258071103,0.85825347,2775.0,2774.3,4.51825751]
[1740258071304,4.46192347,2775.0,2774.4,0.7789]
[1740258071504,4.46192347,2775.0,2774.5,0.7246722]
[1740258072146,4.37540473,2775.1,2774.5,0.7246722]
[1740258072343,3.60365,2775.0,2774.5,0.7246722]
[1740258072642,3.7736,2775.1,2774.5,0.7246722]
[1740258072824,4.37708,2775.1,2774.5,0.7246722]
[1740258073641,0.7736,2775.1,2774.5,0.7246722]
[1740258074042,0.7736,2775.1,2774.5,1.59591042]
[1740258074243,7.20683,2775.2,2774.6,0.7544]
[1740258074547,8.84329,2775.3,2774.6,0.7544]
[1740258074713,3.60345,2775.2,2774.6,0.7544]
[1740258075144,8.84329,2775.3,2774.6,0.7544]
[1740258075516,8.84329,2775.3,2774.6,4.3585]
[1740258076320,8.84329,2775.3,2774.6,0.7544]
[1740258076523,3.6035,2775.1,2774.6,0.7544]
[1740258077018,0.7654,2775.2,2774.6,0.7544]
[1740258077225,3.60368,2775.0,2774.6,0.7544]
[1740258077722,7.20738,2775.0,2774.6,0.7544]
[1740258077920,3.60376,2774.9,2774.6,0.7544]
[1740258078635,3.60368,2775.0,2774.6,0.7544]
[1740258079352,7.97226,2775.2,2774.6,0.7544]
[1740258079523,3.6034,2775.2,2774.6,0.7544]
[1740258080321,7.20685,2775.2,2774.6,0.7544]
[1740258080527,3.6034,2775.2,2774.6,0.7544]
[1740258081131,3.60349,2775.1,2774.6,0.7544]
[1740258084272,3.6034,2775.2,2774.6,0.7544]
[1740258085750,5.25101773,2775.6,2774.7,0.7544]
[1740258085933,3.60303,2775.5,2774.8,0.7544]
[1740258086452,3.60303,2775.5,2774.8,4.35826]
[1740258086652,3.60315,2775.4,2774.9,0.7544]
[1740258087055,4.36829,2775.6,2774.9,0.7544]
[1740258087254,3.60289,2775.6,2774.9,0.7544]
[1740258087577,3.60289,2775.6,2774.9,3.60372]
[1740258087763,3.60289,2775.6,2775.0,0.7544]
[1740258088371,4.339719,2775.6,2775.0,0.7544]
[1740258088774,3.60296,2775.5,2775.0,0.7544]
[1740258089293,4.339719,2775.6,2775.0,0.7544]
[1740258089494,6.6026,2775.8,2775.1,0.789]
[1740258089693,6.6026,2775.8,2775.2,0.789]
[1740258090589,3.60236,2776.0,2775.3,4.39216]
[1740258090996,7.20478,2776.0,2775.3,0.789]
[1740258091794,3.60236,2776.0,2775.3,0.789]
[1740258091988,3.60256,2775.8,2775.3,0.789]
[1740258093794,3.60236,2776.0,2775.3,0.789]
[1740258093951,3.60245,2775.9,2775.3,0.789]
[1740258094161,3.6026,2775.8,2775.3,0.789]
[1740258095350,3.6026,2775.8,2775.3,1.70808493]
[1740258097200,3.60236,2776.0,2775.3,1.70808493]
[1740258097409,3.60236,2776.0,2775.3,5.31128493]
[1740258097908,7.20476,2776.0,2775.3,5.31128493]
[1740258098790,3.0,2776.0,2775.4,0.8072]
[1740258098980,3.60258,2775.8,2775.4,1.35142473]
[1740258099163,3.60258,2775.8,2775.4,0.8072]
[1740258100207,6.60239,2776.0,2775.4,0.8072]
[1740258100208,3.60271,2775.7,2775.4,0.8072]
[1740258101265,3.60284,2775.6,2775.4,0.8072]
[1740258101461,3.60295,2775.5,2775.4,0.8072]
[1740258101667,3.60271,2775.7,2775.4,1.53173308]
[1740258101668,7.20552,2775.7,2775.4,1.53173308]
[1740258102319,7.20552,2775.7,2775.4,0.8072]
[1740258102609,3.60271,2775.7,2775.4,0.8072]
[1740258103514,7.20552,2775.7,2775.4,0.8072]
[1740258103808,3.60291,2775.6,2775.4,0.8072]
[1740258104607,3.60271,2775.7,2775.4,0.8072]
[1740258104811,7.20551,2775.7,2775.4,0.8072]
[1740258105510,3.6029,2775.6,2775.4,0.8072]
[1740258107712,3.6029,2775.6,2775.0,6.37636811]
[1740258107713,3.60317,2775.4,2775.0,6.37636811]
[1740258107952,3.60317,2775.4,2775.0,0.8196]
[1740258109182,7.20635,2775.4,2775.0,0.8196]
[1740258111124,3.60317,2775.4,2775.0,0.8196]
[1740258111419,3.60324,2775.3,2775.0,0.8196]
[1740258112688,3.60347,2775.1,2774.8,0.7871]
[1740258114339,3.60347,2775.1,2774.6,1.0257]
[1740258115130,3.60347,2775.1,2774.6,1.73997759]
[1740258115808,4.42996,2775.5,2774.8,3.60383]
[1740258116033,3.60296,2775.5,2774.9,0.7687]
[1740258116402,3.60296,2775.5,2774.9,0.88147624]
[1740258116613,6.60287,2775.6,2774.9,3.71649624]
[1740258116902,9.66958,2775.8,2775.2,0.7687]
[1740258117132,3.0,2775.7,2775.2,0.7687]
[1740258117297,6.60272,2775.7,2775.2,0.7687]
[1740258118936,3.60283,2775.6,2775.2,0.7687]
[1740258119242,3.60303,2775.5,2775.2,0.7687]
[1740258119807,6.60275,2775.7,2775.2,0.7687]
[1740258121356,3.827,2775.8,2775.2,0.7687]
[1740258121538,3.0,2775.8,2775.2,0.7687]
[1740258121741,6.60257,2775.8,2775.2,1.27695821]
[1740258122866,6.60257,2775.8,2775.3,0.11276261]
[1740258123161,3.6025,2775.9,2775.3,0.11276261]
[1740258123359,4.42942,2776.0,2775.3,0.11276261]
[1740258123660,4.42942,2776.0,2775.4,0.7687]
[1740258124022,6.60244,2775.9,2775.4,0.7687]
[1740258124677,3.60225,2776.1,2775.5,0.7687]
[1740258124974,4.42899,2776.3,2775.5,0.7687]
[1740258125151,0.827,2776.3,2775.5,0.7687]
[1740258125352,3.827,2776.3,2775.5,0.7687]
[1740258125546,3.60242,2776.0,2775.5,0.7687]
[1740258125751,7.20482,2776.0,2775.5,0.7687]
[1740258125949,3.6024,2776.0,2775.6,0.70861794]
[1740258126157,3.6024,2776.0,2775.6,0.90515252]
[1740258126368,3.0,2776.1,2775.6,0.90515252]
[1740258126662,6.60219,2776.1,2775.6,0.90515252]
[1740258126870,8.84186,2776.4,2775.7,0.7687]
[1740258127031,3.0,2776.3,2775.7,0.7687]
[1740258127232,6.60194,2776.3,2775.8,0.52765925]
[1740258127853,3.60186,2776.4,2775.8,0.52765925]
[1740258128169,3.60186,2776.4,2775.9,0.7638]
[1740258129972,3.60191,2776.3,2775.9,0.7638]
[1740258130973,3.60186,2776.4,2775.9,0.7638]
[1740258131143,3.60186,2776.4,2775.9,1.200448]
[1740258135407,3.60157,2776.6,2776.1,0.7673]
[1740258135704,3.60124,2776.9,2776.2,4.36923]
[1740258135902,7.20248,2776.9,2776.3,0.7673]
[1740258136106,3.60128,2776.8,2776.3,0.7673]
[1740258136410,3.60128,2776.8,2776.4,0.436923]
[1740258136763,3.60108,2777.0,2776.5,0.7673]
[1740258136957,3.60119,2776.9,2776.5,0.7673]
[1740258137672,3.60095,2777.1,2776.5,0.7673]
[1740258138214,3.60109,2777.0,2776.5,0.7673]
[1740258138367,3.60095,2777.1,2776.6,0.4805993]
[1740258138563,7.40516,2777.3,2776.6,4.0820893]
[1740258138803,3.60077,2777.2,2776.6,4.0820893]
[1740258139277,7.40516,2777.3,2776.6,4.0820893]
[1740258139475,3.60091,2777.1,2776.6,0.4805993]
[1740258139680,7.20189,2777.1,2776.5,0.7673]
[1740258140012,3.60091,2777.1,2776.5,0.7673]
[1740258140431,3.60091,2777.1,2776.6,0.7673]
[1740258141079,3.60091,2777.1,2776.9,0.7673]
[1740258141573,3.601,2777.0,2776.9,0.7673]
[1740258141919,3.60113,2776.9,2776.8,0.71064781]
[1740258143414,3.60113,2776.9,2776.7,0.7673]
[1740258143709,3.60126,2776.8,2776.7,0.7673]
[1740258144796,3.60114,2776.9,2776.7,0.7673]
[1740258145317,3.60106,2777.0,2776.7,0.7673]
[1740258145501,3.60106,2777.0,2776.7,1.204193]
[1740258145739,3.60106,2777.0,2776.7,0.7673]
[1740258146947,3.60089,2777.1,2776.7,0.7673]
[1740258147115,3.60104,2777.0,2776.7,0.7673]
[1740258147520,3.60089,2777.1,2776.7,0.7673]
[1740258147721,3.60101,2777.0,2776.7,0.7673]
[1740258148607,3.60115,2776.9,2776.7,0.7673]
[1740258149008,7.20237,2776.9,2776.7,0.7673]
[1740258149208,3.60115,2776.9,2776.7,0.7673]
[1740258149603,3.60101,2777.0,2776.7,0.7673]
[1740258150109,3.60114,2776.9,2776.7,0.7673]
[1740258150311,3.60114,2776.9,2776.8,0.72112297]
[1740258153203,7.20212,2777.0,2776.8,0.72112297]
[1740258153408,7.20213,2777.0,2776.8,0.72112297]
[1740258153910,3.60113,2776.9,2776.8,0.72112297]
[1740258154063,3.60101,2777.0,2776.8,1.52382297]
[1740258154261,3.60113,2776.9,2776.8,1.52382297]
[1740258154665,3.45383945,2776.9,2776.8,1.52382297]
[1740258156313,3.60101,2777.0,2776.8,1.52382297]
[1740258158205,3.60113,2776.9,2776.8,1.52382297]
[1740258162416,3.60035,2777.6,2777.1,0.8027]
[1740258162614,3.60061,2777.3,2777.2,0.440361]
[1740258162781,3.60061,2777.3,2777.1,0.8027]
[1740258163996,3.6003,2777.6,2777.1,0.8027]
[1740258164197,3.60004,2777.8,2777.1,4.40349]
[1740258164396,3.60018,2777.7,2777.1,4.40349]
[1740258164603,3.60018,2777.7,2777.2,0.440349]
[1740258164800,3.60018,2777.7,2777.2,0.55303439]
[1740258165333,3.60025,2777.6,2777.2,0.55303439]
[1740258166489,3.60025,2777.6,2777.2,0.440349]
[1740258166892,3.60004,2777.8,2777.3,0.8027]
[1740258167129,3.60004,2777.8,2777.3,1.2870899]
[1740258169792,0.55,2778.1,2777.5,3.60023]
[1740258169992,4.1496,2778.1,2777.5,5.13263258]
[1740258170233,4.1496,2778.1,2777.5,4.33283258]
[1740258170533,0.55,2778.1,2777.7,0.7998]
[1740258170702,0.55,2778.1,2777.8,0.43970449]
[1740258171031,4.14958,2778.1,2777.8,0.43970449]
[1740258171388,3.59984,2777.9,2777.8,0.43970449]
[1740258171712,3.59997,2777.8,2777.7,0.256]
[1740258172132,3.6001,2777.7,2777.6,5.39]
[1740258173112,7.19981,2777.9,2777.6,5.39]
[1740258173310,3.59984,2777.9,2777.6,5.39]
[1740258173611,3.60006,2777.8,2777.6,5.39]
[1740258173841,3.60006,2777.8,2777.6,6.03458]
[1740258175108,3.60006,2777.8,2777.6,0.64458]
[1740258175308,3.60006,2777.8,2777.5,1.0558]
[1740258176354,3.59984,2777.9,2777.5,1.0558]
[1740258182218,7.19979,2777.9,2777.5,1.0558]
[1740258182556,3.59984,2777.9,2777.5,1.0558]
[1740258185363,4.14964,2778.1,2777.6,0.7722]
[1740258185545,0.55,2778.1,2777.7,0.7722]
[1740258185747,7.19986,2777.9,2777.7,0.7722]
[1740258186662,3.6001,2777.7,2777.5,0.256]
[1740258186860,3.6001,2777.7,2777.5,1.01979328]
[1740258187263,3.59992,2777.9,2777.5,1.01979328]
[1740258187823,4.14963,2778.1,2777.6,4.39149]
[1740258188155,3.59972,2778.0,2777.6,0.7913]
[1740258188349,3.59988,2777.9,2777.6,0.7913]
[1740258188533,3.60005,2777.8,2777.6,0.98367612]
[1740258188734,8.54733,2778.1,2777.6,0.98367612]
[1740258188953,7.74933,2778.1,2777.6,0.98367612]
[1740258189352,3.59991,2777.9,2777.6,0.98367612]
[1740258191369,3.59991,2777.9,2777.6,1.09634401]
[1740258191725,3.59971,2778.0,2777.6,1.09634401]
[1740258191921,0.55,2778.1,2777.8,0.7913]
[1740258192126,0.55,2778.1,2777.8,3.59988]
[1740258192369,0.55,2778.1,2777.9,0.7913]
[1740258193969,4.14958,2778.1,2777.7,0.21161373]
[1740258194134,3.59978,2778.0,2777.7,0.46861373]
[1740258194990,4.14958,2778.1,2777.7,0.46861373]
[1740258195189,0.55,2778.1,2777.8,4.31529119]
[1740258195351,0.55,2778.1,2777.9,1.23679049]
[1740258195551,4.14966,2778.1,2777.9,1.34944677]
[1740258195778,0.55,2778.1,2777.9,0.87105628]
[1740258196482,4.14959,2778.1,2777.9,0.87105628]
[1740258196889,4.14959,2778.1,2777.9,0.7584]
[1740258198334,0.55,2778.1,2777.9,0.7584]
[1740258199260,0.55,2778.1,2778.0,0.11265423]
[1740258200498,0.55,2778.1,2778.0,0.81029277]
[1740258202412,0.55,2778.1,2778.0,1.14525068]
[1740258205276,0.55,2778.1,2778.0,1.03259645]
[1740258205975,0.55,2778.1,2778.0,1.145249]
[1740258209725,0.55,2778.1,2778.0,1.401249]
[1740258211694,4.14958,2778.1,2778.0,0.44761046]
[1740258213102,0.55,2778.1,2778.0,0.44761046]
[1740258213301,0.55,2778.1,2778.0,0.33495791]
[1740258213933,0.55,2778.1,2777.9,0.33495791]
[1740258215853,0.55,2778.1,2777.8,3.16639249]
[1740258216140,0.55,2778.1,2777.9,0.70224125]
[1740258216545,0.55,2778.1,2777.9,0.81489783]
[1740258218225,0.55,2778.1,2778.0,0.11265658]
[1740258219339,0.55,2778.1,2778.0,3.71236658]
[1740258219510,0.55,2778.1,2778.0,4.54396658]
[1740258219839,0.55,2778.1,2778.0,7.11957678]
[1740258220295,0.55,2778.1,2778.0,7.45491806]
[1740258221000,0.55,2778.1,2778.0,15.84491806]
[1740258222615,0.55,2778.1,2778.0,14.22545676]
[1740258229261,0.005,2778.9,2778.4,3.59911]
[1740258229467,0.005,2778.9,2778.5,0.615911]
[1740258229639,0.005,2778.9,2778.5,3.85505]
[1740258230569,3.60362,2778.9,2778.5,0.256]
[1740258231049,0.005,2778.9,2778.5,0.256]
[1740258232585,3.60354,2778.9,2778.6,0.72981964]
[1740258232783,4.42672,2778.8,2778.6,0.72981964]
[1740258233484,3.5988,2778.7,2778.6,0.72981964]
[1740258235539,0.828,2778.8,2778.2,0.44749981]
[1740258236188,4.41989,2778.4,2778.3,0.11263551]
[1740258237391,0.8207,2778.4,2778.3,0.11263551]
[1740258237857,0.8207,2778.4,2778.2,4.31314082]
[1740258238058,0.8207,2778.4,2778.2,0.71377082]
[1740258239484,0.8207,2778.4,2778.2,4.31321082]
[1740258239782,0.8207,2778.6,2778.3,0.82476251]
[1740258239989,0.8207,2778.6,2778.2,4.31321082]
[1740258240691,4.41971,2778.6,2778.2,0.71377082]
[1740258241190,0.8207,2778.6,2778.2,0.71377082]
[1740258241988,4.4197,2778.6,2778.2,0.71377082]
[1740258242394,0.8207,2778.6,2778.2,0.71377082]
[1740258246990,0.8207,2778.6,2778.1,5.98111249]
[1740258247428,4.41963,2778.6,2778.1,5.98111249]
[1740258247726,0.8207,2778.6,2778.2,0.11264396]
[1740258248405,0.8207,2778.6,2778.2,0.44771347]
[1740258249202,0.8207,2778.6,2778.3,0.11264396]
[1740258249530,4.41965,2778.6,2778.3,0.11264396]
[1740258250029,0.005,2778.9,2778.5,1.61901249]
[1740258250229,0.005,2778.9,2778.8,6.00428249]
[1740258250529,0.005,2778.9,2778.8,6.26028249]
[1740258252019,0.005,2778.9,2778.8,6.59477867]
[1740258252329,0.005,2778.9,2778.8,6.70742263]
[1740258252629,0.005,2778.9,2778.8,9.45590279]
[1740258253089,0.005,2778.9,2778.8,5.85723279]
[1740258253291,0.005,2778.9,2778.8,1.7337494]
[1740258253489,0.005,2778.9,2778.8,0.97884123]
[1740258254742,0.005,2778.9,2778.8,0.64434505]
[1740258255248,0.005,2778.9,2778.8,0.53170109]
[1740258256458,3.5988,2778.7,2778.6,0.71077477]
[1740258256829,0.8044,2778.8,2778.6,0.71077477]
[1740258257655,4.40316,2778.8,2778.6,0.71077477]
[1740258259451,0.8044,2778.8,2778.6,0.71077477]
[1740258259664,3.5988,2778.7,2778.6,0.71077477]
[1740258261757,0.005,2778.9,2778.6,0.71077477]
[1740258261958,0.8094,2778.9,2778.7,0.76466482]
[1740258262369,0.005,2778.9,2778.7,0.76466482]
[1740258263560,0.8044,2778.8,2778.6,0.71077477]
[1740258263874,3.5988,2778.7,2778.6,0.71077477]
[1740258264054,0.8044,2778.8,2778.6,0.71077477]
[1740258264467,3.60364,2778.9,2778.6,0.71077477]
[1740258265339,0.005,2778.9,2778.6,0.71077477]
[1740258265675,0.005,2778.9,2778.6,1.19499204]
[1740258266768,3.60356,2778.9,2778.6,1.19499204]
[1740258267137,3.59868,2778.8,2778.6,0.71077477]
[1740258268241,3.5988,2778.7,2778.6,0.71077477]
[1740258268441,3.59868,2778.8,2778.6,0.71077477]
[1740258270487,3.5988,2778.7,2778.6,0.71077477]
[1740258271087,0.005,2778.9,2778.6,0.71077477]
[1740258271258,3.60362,2778.9,2778.6,0.71077477]
[1740258271661,3.5988,2778.7,2778.6,0.71077477]
[1740258273081,3.59906,2778.5,2778.4,0.11263432]
[1740258273588,3.59906,2778.5,2778.3,0.33461882]
[1740258273747,0.7966,2778.6,2778.1,0.44725314]
[1740258273947,3.59943,2778.3,2778.1,0.44725314]
[1740258274650,7.19885,2778.3,2778.1,0.44725314]
[1740258274849,3.59945,2778.2,2778.1,0.33461882]
[1740258275045,3.59942,2778.3,2778.0,0.256]
[1740258275481,0.7966,2778.2,2778.0,0.256]
[1740258276482,4.39606,2778.2,2778.0,0.256]
[1740258283083,0.7966,2778.2,2778.0,0.256]